Cogmind - Beta 14 @@@ ROGUE MODE // 2024.08.12 @ 12:38:28 Player: APerTAS Result: Core destroyed Performance ------------- Evolutions (0) 0 Regions Visited (1) 200 Robots Destroyed (18) 90 Value Destroyed (356) 356 Prototype IDs (0) 0 Alien Tech Used (0) 0 Bonus (0) 0 TOTAL SCORE: 646 Bonus ------- None Cogmind --------- Core Integrity 0/250 Matter 263/300 Energy 100/100 System Corruption 5% Temperature Hot (212) Movement Core (50) Location -10/Materials Parts ------- > --- POWER (1) -------- (None) > --- PROPULSION (2) --- (None) > --- UTILITY (2) ------ (None) > --- WEAPON (2) ------- (None) > --- INVENTORY (5) ---- Reinforced Ion Engine Improved Heat Sink Beam Rifle Particle Gun Plasma Cutter Peak State ------------ > --- POWER ------------ Reinforced Ion Engine > --- PROPULSION ------- Light Treads Light Treads > --- UTILITY ---------- Small Storage Unit Signal Interpreter > --- WEAPON ----------- Beam Rifle Assault Rifle > --- INVENTORY -------- Reinforced Ion Engine Aluminum Leg Aluminum Leg Structural Scanner Sensor Array EM Pulse Gun Beam Rifle Welding Torch [Rating: 10] Favorites ----------- Power Reinforced Ion Engine Engine Reinforced Ion Engine Propulsion Light Treads Treads Light Treads Utility Small Storage Unit Storage Small Storage Unit Processor Signal Interpreter Weapon Assault Rifle Energy Gun Beam Rifle Ballistic Gun Assault Rifle Build | -11 -10 ------- Run | Yrd Mat Slots Evolved . | . . Power . | . . Propulsion . | . . Utility . | . . Weapon . | . . Parts Attached 13 | 6 7 Power 2 | 1 1 Engine 2 | 1 1 Core . | . . Reactor . | . . Propulsion 3 | 2 1 Treads 3 | 2 1 Leg . | . . Wheel . | . . Hover . | . . Flight . | . . Utility 5 | 1 4 Device . | . . Storage 2 | 1 1 Processor 3 | . 3 Hackware . | . . Protection . | . . Artifact . | . . Weapon 3 | 2 1 Energy Gun 2 | 1 1 Energy Cannon . | . . Ballistic Gun 1 | 1 . Ballistic Cannon . | . . Launcher . | . . Special Weapon . | . . Impact Weapon . | . . Slashing Weapon . | . . Piercing Weapon . | . . Special Melee Weapon . | . . Unidentified Prototypes . | . . Parts Lost 1 | . 1 Power . | . . Propulsion 1 | . 1 Utility . | . . Weapon . | . . Highest Loss Streak 1 | . 1 To Critical Strikes . | . . Average Slot Usage (%) 96 | . 96 Engine 13 | . 13 Treads 27 | . 27 Storage 13 | . 13 Processor 11 | . 11 Energy Gun 13 | . 13 Ballistic Gun 13 | . 13 Peak Build Rating 10 | 6 10 Average Rating 8 | 4 8 On Entrance 3 | . 6 Naked Turns 10 | . 10 Heaviest Build 20 | 13 20 Greatest Support 40 | 40 40 Greatest Overweight (x) . | . . Average Overweight (x) . | . . Largest Inventory Capacity 8 | 8 8 Average Capacity 7 | 7 7 Most Carried 8 | 4 8 Average Carried 6 | 2 7 Final Capacity 8 | 8 5 Final Carried 5 | 4 5 Class Distribution -------------------- 100% | Mutant Dominant Class ---------------- Mutant | -10/Materials Resources | -11 -10 ----------- Run | Yrd Mat Matter Collected 423 | 206 217 Remotely . | . . Salvage Created 456 | . 456 Parts 40 | . 40 Haulers Intercepted . | . . Recyclers Shooed . | . . Parts Field Recycled . | . . Retrieved Matter . | . . Parts Self-Destructed . | . . Prevented . | . . Kills | -11 -10 ------- Run | Yrd Mat Combat Hostiles Destroyed 12 | . 12 Guns 12 | . 12 Classes Destroyed 5 | . 5 Worker 2 | . 2 Operator 1 | . 1 Watcher 3 | . 3 Swarmer 6 | . 6 Grunt 6 | . 6 Best Kill Streak 3 | . 3 Combat Bots Only 3 | . 3 Max Kills in Single Turn 2 | . 2 Gunslinging . | . . Exploded . | . . Melee . | . . Uniques/NPCs Destroyed . | . . Combat | -11 -10 -------- Run | Yrd Mat Hostile Shots Fired 77 | . 77 Missed 18 | . 18 Damage Taken 711 | . 711 Core 260 | . 260 Absorbed by Shields . | . . Core Remaining (%) 100 | 100 . Volleys Fired 47 | . 47 Largest 2 | . 2 Hottest 76 | . 76 Shots Fired 92 | . 92 Gun 92 | . 92 Cannon . | . . Launcher . | . . Special . | . . Kinetic 45 | . 45 Thermal 47 | . 47 Explosive . | . . Electromagnetic . | . . Robot Hit Streak 9 | . 9 Robot Miss Streak 4 | . 4 Penetration Max . | . . Secondary Targets 2 | . 2 Max Gunslinging Chain 1 | . 1 Shots Hit Robots 50 | . 50 Core Hits 25 | . 25 Critical Kills 2 | . 2 Critical Parts Destroyed . | . . Critical Strikes 5 | . 5 Burn 3 | . 3 Destroy 2 | . 2 Melee Attacks . | . . Impact . | . . Slashing . | . . Piercing . | . . Sneak Attacks . | . . Combat Hostiles . | . . Follow-up Attacks . | . . Damage Inflicted 815 | . 815 Guns 755 | . 755 Cannons . | . . Explosions . | . . Melee . | . . Ramming 60 | . 60 Kinetic 379 | . 379 Thermal 376 | . 376 Explosive . | . . Electromagnetic . | . . Impact . | . . Slashing . | . . Piercing . | . . Highest Corruption 4 | . 4 Average Corruption 2 | . 2 Corruption Purged . | . . Corruption Blocked . | . . Overload Shots . | . . Overflow Damage . | . . Projectiles . | . . Explosions . | . . Melee . | . . Knockbacks . | . . Impact . | . . Kinetic . | . . Secondary . | . . Self-Inflicted Damage 60 | . 60 Shots . | . . Rammed . | . . Targets Rammed . | . . Kicked . | . . Crushed . | . . Highest Temperature 462 | . 462 Average Temperature 136 | . 136 Received Heat Transfer 216 | . 216 Effects 4 | . 4 Shutdowns 2 | . 2 Short Circuit 2 | . 2 Siege Activations . | . . Robots Corrupted . | . . Combat Hostiles . | . . Parts Fried . | . . Impact Corruptions . | . . Robots Melted . | . . Combat Hostiles . | . . Parts Melted 3 | . 3 Heat Transferred 1172 | . 1172 Parts Sabotaged . | . . Parts Stolen . | . . Parts Stripped . | . . Power Chain Reactions . | . . Alert | -11 -10 ------- Run | Yrd Mat Peak Influence 200 | . 200 Initial . | . . Average 38 | . 40 Maximum Alert Level 1 | . 1 Low Security (%) 99 | 100 99 Level 1 . | . . Level 2 . | . . Level 3 . | . . Level 4 . | . . Level 5 . | . . High Security . | . . Max Security . | . . Squads Dispatched 2 | . 2 Investigation 1 | . 1 Extermination . | . . Reinforcement 1 | . 1 Assault . | . . Garrison . | . . Intercept . | . . Searches Triggered . | . . Construction Impeded . | . . Haulers Reinforced . | . . Active Scanning Responses . | . . Cargo Convoy Interrupts . | . . Stealth | -11 -10 --------- Run | Yrd Mat Distress Signals 1 | . 1 Communications Jammed . | . . Distress Signals . | . . Times Spotted 18 | . 18 Peak Tracking Total 4 | . 4 Tactical Retreats 2 | . 2 Traps | -11 -10 ------- Run | Yrd Mat Traps Triggered 1 | . 1 Indirectly . | . . Trap Hack Attempts . | . . Triggered . | . . Disarmed . | . . Reprogrammed 1 | . 1 Reused . | . . Traps Extracted . | . . Installed . | . . Triggered . | . . Machines | -11 -10 ---------- Run | Yrd Mat Machines Disabled . | . . Max in Single Turn . | . . Machines Repaired . | . . Machines Dismantled . | . . Machines Sabotaged . | . . Overloaded Fab Kills . | . . Hacking | -11 -10 --------- Run | Yrd Mat Machines Accessed 5 | . 5 Terminals 3 | . 3 Fabricators . | . . Repair Stations . | . . Recycling Units 2 | . 2 Scanalyzers . | . . Garrison Access . | . . Total Hacks 15 | . 15 Successful 12 | . 12 Failed 3 | . 3 Catastrophic . | . . Database Lockouts . | . . Manual 11 | . 11 Terminals 8 | . 8 Fabricators . | . . Repair Stations . | . . Recycling Units 7 | . 7 Scanalyzers . | . . Garrison Access . | . . Terminal Hacks 4 | . 4 Robot Analysis 1 | . 1 Locate Traps 1 | . 1 Reprogram Traps 1 | . 1 Zone Layout 1 | . 1 Fabricator Hacks . | . . Repair Station Hacks . | . . Recycling Unit Hacks 2 | . 2 Report Inventory 1 | . 1 Retrieve Components 1 | . 1 Scanalyzer . | . . Garrison Access Hacks . | . . Unauthorized Hacks 6 | . 6 Terminals 3 | . 3 Track 1 | . 1 Botnet 2 | . 2 Fabricators . | . . Repair Stations . | . . Recycling Units 3 | . 3 Monitor 1 | . 1 Reject 2 | . 2 Scanalyzers . | . . Garrison Access . | . . Data Cores Recovered . | . . Used . | . . Hacking Detections 5 | . 5 Full Trace Events . | . . Feedback Events . | . . Feedback Blocked . | . . Robot Schematics Acquired . | . . Robots Built . | . . Authchips . | . . Time . | . . Total Robot Build Rating . | . . Part Schematics Acquired . | . . Parts Built . | . . Authchips . | . . Time . | . . Total Part Build Rating . | . . Parts Repaired . | . . Time . | . . Parts Recycled . | . . Recycled Matter . | . . Retrieved Matter . | . . Retrieved Components 9 | . 9 Parts Scanalyzed . | . . Part Schematics Acquired . | . . Parts Damaged . | . . Bothacking | -11 -10 ------------ Run | Yrd Mat Used RIF Installer . | . . Robots Hacked . | . . Non-combat . | . . Combat . | . . Robot Hacks Applied . | . . Relay Couplers Released . | . . Fabnet Peak Effective % . | . . Robots Rewired . | . . Allies Hacked . | . . Hacks Repelled . | . . Allies | -11 -10 -------- Run | Yrd Mat Total Allies . | . . Largest Group . | . . Highest-Rated Group . | . . Highest-Rated Ally . | . . Total Orders . | . . Ally Attacks . | . . Total Damage . | . . Kills . | . . Allies Corrupted . | . . Allies Melted . | . . Intel | -11 -10 ------- Run | Yrd Mat Robot Analysis Total 1 | . 1 Derelict Logs Recovered . | . . Drone Launches . | . . Drone Recoveries . | . . Exploration | -11 -10 ------------- Run | Yrd Mat Turns Passed 1315 | 90 1225 Spaces Moved 695 | 51 644 Core 6 | 5 1 Treads 689 | 46 643 Legs . | . . Wheels . | . . Hover . | . . Flight . | . . Fastest Speed 50 | 50 50 Average Speed 159 | 149 159 Slowest Speed 160 | 160 160 Overloaded Moves . | . . Propulsion Burnouts . | . . Robots Hopped . | . . Cave-ins Triggered . | . . Exploration Rate (%) 43 | 4 83 Regions Visited 1 Branch Regions . Pre-discovered Areas . | . . Known Exits Taken . | . . Unknown Exits Taken 1 | 1 . Scrap Searched . | . . Spaces Dug . | . . Terrain Destroyed . | . . Melee . | . . Projectile . | . . AOE . | . . Terrain Rammed 10 | . 10 Walls Destroyed . | . . Machines Disabled . | . . Actions | -11 -10 --------- Run | Yrd Mat Total 814 | 63 751 Wait 26 | . 26 Move 694 | 50 644 Hop . | . . Pick Up 15 | 6 9 Fast Attach 6 | 5 1 Attach 1 | 1 . Detach . | . . Swap 6 | . 6 Drop 10 | 1 9 Fire 47 | . 47 Melee . | . . Ram 9 | . 9 Kick . | . . Crush . | . . Escape Stasis . | . . Rewire . | . . Trap . | . . Miscellaneous . | . . Route ------- -11/Scrapyard -10/Materials (discovered 3 exits: [*Mat] / *Min / *Sub) History --------- Turn | Location | Event 37 | -11/Scrapyard | Discovered new exit (range 16) 91 | -11/Scrapyard | Entered Materials 300 | -10/Materials | Build established: Mutant 328 | -10/Materials | Discovered new exit (range 8) 370 | -10/Materials | Identified exit to Mines 599 | -10/Materials | Discovered new exit (range 16) 1092 | -10/Materials | Discovered new exit (range 3) 1095 | -10/Materials | Identified exit to Subcaves 1191 | -10/Materials | Derelicts attacked the area 1283 | -10/Materials | Core integrity fell below 50% 1306 | -10/Materials | Released all parts (6) 1313 | -10/Materials | Core integrity fell below 20% 1316 | -10/Materials | Core destroyed Last Messages --------------- 01307_ Slammed into Wall. 01307_ Destabilizing: System corrupted (+1). 01307_ Destabilizing: Core damaged (-12). 01308_ Slammed into Wall. 01310_ K-01 Serf collects debris. 01310_ Slammed into Wall. 01311_ Destabilizing: Core damaged (-12). 01312_ Slammed into Wall. 01312_ Destabilizing: System corrupted (+2). 01312_ Destabilizing: Core damaged (-5). 01313_ Slammed into Wall. 01313_ K-01 Serf collects debris. 01314_ Slammed into Wall. 01314_ Destabilizing: System corrupted (+1). 01315_ Slammed into Wall. 01315_ Destabilizing: Core damaged (-10). 01315_ Destabilizing: Core damaged (-7). 01316_ Slammed into Wall. 01316_ Destabilizing: System corrupted (+1). 01316_ Destabilizing: Core damaged (-12). Map ----- +----------------------------------------------------+ | ??????????# #???????????? ???????? | | ????????### ###?????????? #??????? | | ?######## #?#####???? #??????? | | ?# # ### #???? #??????? | | ## + #???# ####???? | | #> # ### #???# !##??? | | ####+#### #?## ##???# !#??? | | #### #??### ###??# #????# !???? | | #????# #????# #????# ????? | | ######????# #????# #????# ?????? | | ??????????# #????# #????# ??????? | | ?##########+###### #????# #??????? | | ?# # # #????# #??????? | | ## T # # #????# #??????? | | #! # # ######= #??????? | | # # """ #= % #??????? | | +^ # """ [/% ==% #??????? | | # # """ # [ #??????? | | ######## """ ######## k #??????? | | #?????# """ #??????#% #??????? | | #?????# #??????#%%=#??????? | | #?????##########??????# #??????? | | #?????????????????????# #??????? | | #?????????????????????# #??????? | | #????????????????????## ##?????? | | #???????????????###### @=[ #?????? | | ##???????? ! t !!! #?????? | | #????????? =%[ *T= #?????? | | #????????? #?????? | | #????????? ############ #?????? | | ##########????????????#######?????? | | # #????????????????????????? | | # #????????????????????????? | | + #????????????????????????? | | # #????????????????????????? | | ##########????????????????????????? | | ^ ????????????????????????????? | | ^####?????????????????????????????? | | ^#????????????????????????????????? | | ^ #????????????????????????????????? | | ^^#????????????????????????????????? | | ########??????????????????????????? | | # #??????????????????????????? | | + #??????????????????????????? | | # #??????????????????????????? | | # #??????????????????????????? | | ## #??????????????????????????? | | ## #??????????????????????????? | | #########??????????????????????????? | | !!#??????????????????????????????? | +----------------------------------------------------+ Best States ------------- Heat Dissipation 25 Energy Generation 12 Energy Capacity 265 Matter Stores 300 Matter Capacity 300 Sight Range 16 Terrain Scan Density 10 Evasion (%) 40 Recoil Reduction 2 Item Schematics ----------------- None Robot Schematics ------------------ None Fabricated ------------ Nothing Alien Tech Used ----------------- None Achievements -------------- None Challenges ------------ None Game ------ Seed LobotomyBlastTerrabomb Manual? 0 Play Time 00:13:03 Cumulative 20.4 hours Start 2024.08.12 @ 12:29:38 End 2024.08.12 @ 12:38:28 Sessions 1 Manual Loads 0 Difficulty Rogue Special Mode None Game No. 95 Rogue 95 Adventurer 0 Explorer 0 Win Type - Total 0 Types 0/0/0/0/0/0/0/0/0 Lore% 32 Gallery% 24 Achievement% 32 Wizard Run 0 Options --------- Layout 0 ASCII 0 Keyboard 0 Movement Arrows Keybinds 0 Fullscreen 2 Font 18/Terminus Map View 76x50 Zoom Use 0% Tactical HUD 1 Map Filters NONE Filters NONE Steam 1 RUN: b4d8a0b8-e68b-477a-af29-03b0e9cb2d01